fUST/lending_fUST_20240707
["ID","MTS","AMOUNT","RATE_DAILY","PERIOD"]
[331373670,1720296650839,-500.0,0.00042835,120]
[331373671,1720296650849,-500.0,0.00042835,120]
[331373672,1720296650859,-500.0,0.00042835,120]
[331373673,1720296650872,-500.0,0.00042835,120]
[331373674,1720296650881,-500.0,0.00042835,120]
[331373675,1720296650891,-500.0,0.00042835,120]
[331373676,1720296650902,-256.41,0.00042835,120]
[331373677,1720296650911,-500.0,0.00042835,120]
[331373678,1720296650920,-500.0,0.00042835,120]
[331373679,1720296650930,-500.0,0.00042835,120]
[331373680,1720296650940,-500.0,0.00042835,120]
[331373681,1720296650951,-500.0,0.00042835,120]
[331373682,1720296650961,-500.0,0.00042835,120]
[331373683,1720296650972,-500.0,0.00042835,120]
[331373684,1720296650981,-616.74,0.00042835,120]
[331373685,1720296650991,-500.0,0.00042835,120]
[331373686,1720296651000,-500.0,0.00042835,120]
[331373687,1720296651009,-500.0,0.00042835,120]
[331373688,1720296651020,-500.0,0.00042835,120]
[331373689,1720296651029,-500.0,0.00042835,120]
[331373690,1720296651039,-500.0,0.00042835,120]
[331373691,1720296651048,-500.0,0.00042835,120]
[331373692,1720296651057,-500.0,0.00042835,120]
[331373693,1720296651067,-500.0,0.00042835,120]
[331373694,1720296651076,-500.0,0.00042835,120]
[331373695,1720296651086,-500.0,0.00042835,120]
[331373696,1720296651095,-500.0,0.00042835,120]
[331373697,1720296651104,-500.0,0.00042835,120]
[331373698,1720296651113,-500.0,0.00042835,120]
[331373699,1720296651123,-500.0,0.00042835,120]
[331373700,1720296651133,-500.0,0.00042835,120]
[331373701,1720296651143,-500.0,0.00042835,120]
[331373702,1720296651151,-500.0,0.00042835,120]
[331373703,1720296651160,-500.0,0.00042835,120]
[331373704,1720296651169,-500.0,0.00042835,120]
[331373705,1720296651179,-500.0,0.00042835,120]
[331373706,1720296651188,-500.0,0.00042835,120]
[331373707,1720296651198,-500.0,0.00042835,120]
[331373708,1720296651208,-500.0,0.00042835,120]
[331373709,1720296651218,-500.0,0.00042835,120]
[331373710,1720296651228,-500.0,0.00042835,120]
[331373711,1720296651237,-500.0,0.00042835,120]
[331373712,1720296651246,-500.0,0.00042835,120]
[331373713,1720296651255,-500.0,0.00042835,120]
[331373714,1720296651264,-500.0,0.00042835,120]
[331373715,1720296651273,-500.0,0.00042835,120]
[331373716,1720296651282,-500.0,0.00042835,120]
[331373717,1720296651292,-500.0,0.00042835,120]
[331373718,1720296651301,-500.0,0.00042835,120]
[331373719,1720296651310,-500.0,0.00042835,120]
[331373720,1720296651320,-500.0,0.00042835,120]
[331373721,1720296651329,-500.0,0.00042835,120]
[331373722,1720296651338,-500.0,0.00042835,120]
[331373723,1720296651348,-500.0,0.00042835,120]
[331373724,1720296651357,-500.0,0.00042835,120]
[331373725,1720296651366,-500.0,0.00042835,120]
[331373726,1720296651375,-500.0,0.00042835,120]
[331373727,1720296651384,-500.0,0.00042835,120]
[331373728,1720296651394,-500.0,0.00042835,120]
[331373729,1720296651403,-500.0,0.00042835,120]
[331373730,1720296651412,-500.0,0.00042835,120]
[331373731,1720296651421,-500.0,0.00042835,120]
[331373732,1720296651430,-500.0,0.00042835,120]
[331373733,1720296651439,-500.0,0.00042835,120]
[331373734,1720296651448,-294.51,0.00042835,120]
[331373735,1720296651457,-4816.63216603,0.000429,31]
[331373736,1720296651467,-334324.62601482,0.000429,15]
[331373737,1720296651490,-10000.120536,0.000429,15]
[331373738,1720296651502,-23935.13666338,0.000429,15]
[331373739,1720296651514,-33205.06881103,0.000429,15]
[331373740,1720296651649,-1031.16260007,0.000429,15]
[331373741,1720296652391,-160.5991902,0.00039795,2]
[331373742,1720296652401,-1577.17015947,0.0004,14]
[331373743,1720296652412,-107.97731953,0.0004,14]
[331373744,1720296652422,-1685.147488,0.0004,14]
[331373745,1720296652431,-154.77557542,0.00040999,4]
[331373746,1720296652440,-32266.53795027,0.000429,15]
[331373747,1720296652452,-4293.02520053,0.000429,15]
[331373748,1720296652463,-23364.41679344,0.000429,15]
[331373749,1720296652475,-6328.53486737,0.000429,15]
[331373750,1720296652486,-20593.25512156,0.000429,15]
[331373751,1720296652497,-2106.65424492,0.000429,15]
[331373752,1720296652509,-51765.0,0.000429,15]
[331373754,1720296842844,250.11014141,0.00013699,2]
[331373755,1720296846123,300.0,0.00013699,2]
[331373756,1720296927735,21.92051515,0.00013699,2]
[331373757,1720296927771,860.19763852,0.00013699,2]
[331373758,1720296927806,467.72590885,0.00013699,2]
[331373759,1720296927841,860.19763852,0.00013699,2]
[331373760,1720296927878,187.74883411,0.00013699,2]
[331373761,1720296929454,110.35882424,0.00013699,2]
[331373762,1720296929490,44.51694134,0.00013699,2]
[331373763,1720296941467,183.19475252,0.00013699,2]
[331373768,1720297054158,179.85455723,0.00014999,2]
[331373779,1720297122451,154.79103211,0.00014999,2]
[331373785,1720297215154,94.04766429,0.00014999,2]
[331373786,1720297215192,71.76644591,0.00014999,2]
[331373787,1720297221439,154.79103211,0.00014999,2]
[331373788,1720297226546,604.59661938,0.00014999,2]
[331373789,1720297226583,458.17298887,0.00014999,2]
[331373790,1720297226611,941.8521956,0.00014999,2]
[331373791,1720297233045,239.25593046,0.00014999,2]
[331373793,1720297239121,445.59052774,0.00014999,2]
[331373794,1720297251926,435.38587219,0.00014999,2]
[331373796,1720297261018,510.1563651,0.00014999,2]
[331373797,1720297264515,156.81237167,0.00014999,2]
[331373798,1720297279511,410.09279782,0.00015,2]
[331373799,1720297282820,155.0528303,0.00014999,2]
[331373800,1720297290199,195.78789883,0.00014999,2]
[331373802,1720297315986,299.69039549,0.00014999,2]
[331373803,1720297327730,154.79103211,0.00014999,2]
[331373808,1720297420713,154.79103211,0.00014999,2]
[331373813,1720297454642,3834.69837699,0.00014999,2]
[331373817,1720297496273,1986.97335839,0.00014999,2]
[331373818,1720297508444,215.38974417,0.00014999,2]
[331373821,1720297567157,159.39604936,0.00014999,2]
[331373824,1720297617388,200.99227756,0.00014999,2]
[331373825,1720297627316,948.84245203,0.00015,2]
[331373827,1720297641700,885.39104552,0.00014999,2]
[331373828,1720297646152,-300.0,0.00016254,2]
[331373829,1720297646182,-300.0,0.00016254,2]
[331373830,1720297646204,-1952.66630073,0.00016255,2]
[331373833,1720297747214,-300.0,0.00016254,2]
[331373834,1720297747263,-15879.02107511,0.00016255,2]
[331373835,1720297755243,-1554.49873937,0.00016255,2]
[331373836,1720297755271,-155.38326507,0.00016255,2]
[331373837,1720297755327,-287.0,0.00017766,2]
[331373838,1720297755364,-532.07448423,0.0001818,2]
[331373839,1720297755397,-14766.0061659,0.00020972,2]
[331373840,1720297755423,-391.29109009,0.00021095,2]
[331373841,1720297755453,-162.890075,0.00021096,2]
[331373842,1720297755479,-3000.0,0.00021142,2]
[331373843,1720297755512,-257.567938,0.00021476,2]
[331373844,1720297755585,-1040.48365354,0.00022045,2]
[331373845,1720297755625,-166.666666,0.00022055,2]
[331373846,1720297755650,-451.26255636,0.0002243,2]
[331373847,1720297760024,246.15851367,0.0001818,2]
[331373848,1720297762222,525.93863422,0.00016255,2]
[331373849,1720297765089,1813.82787667,0.00016255,2]
[331373850,1720297773772,157.58376652,0.00014999,2]
[331373852,1720297805261,-644.2769737,0.00016255,2]
[331373853,1720297805302,-160.02135444,0.00019703,2]
[331373854,1720297805345,-155.97914107,0.00019703,2]
[331373855,1720297805386,-369.95949315,0.00019703,2]
[331373856,1720297805427,-154.79103211,0.00019703,2]
[331373857,1720297805466,-154.79103211,0.00019703,2]
[331373858,1720297805507,-55.44516662,0.00019703,2]
[331373859,1720297805559,-437.02484887,0.00019703,2]
[331373860,1720297805596,-523.25262034,0.000198,2]
[331373861,1720297806293,173.14548172,0.00014999,2]
[331373871,1720297832930,-612.735,0.000198,2]
[331373872,1720297832943,-1083.66500392,0.000198,2]
[331373988,1720297842557,-698.41200574,0.000198,2]
[331374003,1720297842937,-49190.6391165,0.000198,2]
[331374004,1720297842947,-435.0,0.00021095,2]
[331374005,1720297842958,-458.17298887,0.00021917,2]
[331374006,1720297842969,-154.79103211,0.0002243,2]
[331374007,1720297842979,-30000.0,0.00024042,2]
[331374008,1720297842996,-166.666666,0.00024728,2]
[331374009,1720297843012,-29299.8384564,0.00025198,3]
[331374010,1720297843023,-24900.0,0.00025208,2]
[331374011,1720297843034,-657.87753792,0.00025904,2]
[331374012,1720297843047,-163.081609,0.00026004,2]
[331374013,1720297843059,-218.69050053,0.00027297,2]
[331374014,1720297843070,-4540.76870081,0.00027299,2]
[331374015,1720297843080,-500.0,0.00027397,2]
[331374016,1720297843091,-640.85769942,0.00027397,2]
[331374017,1720297843102,-162.890075,0.00027534,2]
[331374018,1720297843112,-657.87753785,0.0002896,2]
[331374019,1720297843122,-572.0307,0.00029666,30]
[331374020,1720297843132,-284.30371793,0.0003,3]
[331374021,1720297843143,-657.87753785,0.00032016,2]
[331374022,1720297843152,-257.567938,0.00032213,2]
[331374023,1720297843163,-162.890075,0.00033973,2]
[331374024,1720297843173,-4710.72024946,0.00034562,4]
[331374025,1720297843183,-657.87753785,0.00035072,2]
[331374026,1720297843194,-2832.46914027,0.00035259,120]
[331374027,1720297843205,-531.56332391,0.00036,30]
[331374028,1720297843216,-154.79103211,0.0003701,4]
[331374029,1720297843227,-1500.0,0.00037259,4]
[331374030,1720297843238,-474.22653977,0.00037999,4]
[331374031,1720297843258,-542.88077558,0.00037999,4]
[331374032,1720297843279,-657.87753785,0.00038129,2]
[331374033,1720297843292,-203.34,0.00038264,4]
[331374034,1720297843302,-309.99380041,0.00038264,4]
[331374036,1720297843314,-495.50543718,0.00038264,4]
[331374038,1720297843324,-664.14900592,0.00038499,2]
[331374040,1720297843334,-161.9347333,0.00038973,2]
[331374042,1720297843344,-1395.84,0.00039881,10]
[331374044,1720297843354,-164.77230526,0.00039994,4]
[331374046,1720297843365,-153.243,0.00040341,2]
[331374048,1720297843375,-878.0,0.00040341,2]
[331374050,1720297843385,-162.890075,0.00040411,2]
[331374052,1720297843395,-154.79103211,0.00040807,4]
[331374054,1720297843406,-400.0,0.00041096,60]
[331374056,1720297843419,-657.87753785,0.00041185,28]
[331374058,1720297843429,-1395.84,0.00041251,10]
[331374060,1720297843439,-150.78889555,0.00041507,2]
[331374062,1720297843450,-29299.8384564,0.0004199,5]
[331374064,1720297843461,-245.71417189,0.00041999,4]
[331374066,1720297843471,-575.26207313,0.00041999,4]
[331374068,1720297843481,-11000.0,0.00042,120]
[331374070,1720297843492,-301.57779109,0.00042205,4]
[331374072,1720297843502,-175.1,0.00042478,31]
[331374074,1720297843511,-500.0,0.00042499,120]
[331374077,1720297843522,-2500.0,0.000425,120]
[331374079,1720297843532,-175.1,0.00042616,31]
[331374081,1720297843542,-152.0,0.00042616,31]
[331374083,1720297843552,-1395.84,0.00042621,10]
[331374085,1720297843564,-175.1,0.00042755,31]
[331374087,1720297843576,-152.0,0.00042755,31]
[331374089,1720297843586,-58599.6769129,0.0004277,5]
[331374090,1720297843597,-597.02099789,0.00042779,31]
[331374092,1720297843607,-218.69050053,0.0004278,2]
[331374094,1720297843617,-88888.0,0.0004278,5]
[331374095,1720297843628,-6937.00042509,0.0004279,31]
[331374096,1720297843638,-10165.61,0.00042799,120]
[331374097,1720297843649,-2000.0,0.000428,2]
[331374098,1720297843659,-128784.18672411,0.0004289,5]
[331374102,1720297843886,-17715.00555789,0.0004289,5]
[331374103,1720297843896,-175.1,0.00042894,31]
[331374104,1720297843906,-152.0,0.00042894,31]
[331374105,1720297843916,-89006.1145744,0.000429,15]
[331374106,1720297843974,-500.00251698,0.000429,15]
[331374107,1720297843988,-14247.30661905,0.000429,15]
[331374108,1720297844001,-1152.9933705,0.000429,15]
[331374109,1720297844742,-17619.4683005,0.000429,15]
[331374110,1720297844986,-3000.0,0.000429,15]
[331374121,1720297847385,-458.17298887,0.00021095,2]
[331374122,1720297847394,-737.82701113,0.000429,15]
[331374147,1720297959319,158.19021239,0.00014999,2]
[331374148,1720297960929,193.69798923,0.00014999,2]
[331374149,1720297966532,308.101947,0.00014999,2]
[331374150,1720297979946,525.93863422,0.00014999,2]
[331374151,1720297982478,209.15804517,0.00014999,2]
[331374152,1720297992588,492.47001549,0.00014999,2]
[331374153,1720297998083,458.17298887,0.00014999,2]
[331374154,1720298018365,275.57396119,0.00014999,2]
[331374158,1720298108725,164.77230526,0.00014999,2]
[331374159,1720298124079,154.79103211,0.00014999,2]
[331374160,1720298128489,209.15804517,0.00014999,2]
[331374161,1720298144231,154.79103211,0.00014999,2]
[331374163,1720298147012,525.93863422,0.00014999,2]
[331374164,1720298148574,160.02135444,0.00014999,2]
[331374167,1720298151582,4710.72024946,0.00014999,2]
[331374170,1720298163536,203.34,0.00014999,2]
[331374171,1720298164421,325.82276286,0.00014999,2]
[331374172,1720298164599,1500.0,0.00014999,2]
[331374176,1720298176041,458.17298887,0.00014999,2]
[331374177,1720298187357,154.79103211,0.00014999,2]
[331374179,1720298204551,507.35891975,0.00014999,2]
[331374185,1720298229677,1064.47346101,0.00014999,2]
[331374188,1720298239889,214.0,0.000195,10]
[331374189,1720298240253,7234.07750944,0.0001,2]
[331374190,1720298244815,403.37885226,0.00014999,2]
[331374191,1720298262722,587.7182223,0.00014999,2]
[331374192,1720298263636,155.2027683,0.00014999,2]
[331374193,1720298272585,216.67131285,0.00014999,2]
[331374194,1720298277028,525.93863422,0.00014999,2]
[331374195,1720298277058,155.06527205,0.00014999,2]
[331374197,1720298294215,154.79103211,0.00014999,2]
[331374198,1720298304284,613.80017943,0.00014999,2]
[331374199,1720298308207,1860.38603495,0.00014999,2]
[331374200,1720298316045,307.75655158,0.00014999,2]
[331374202,1720298325253,195.88115679,0.00014999,2]
[331374204,1720298351828,530.50776108,0.00014999,2]
[331374205,1720298364141,542.88077558,0.00014999,2]
[331374209,1720298379719,3773.14321747,0.00014999,2]
[331374211,1720298382824,403.37885226,0.00014999,2]
[331374212,1720298385424,155.16746365,0.00014999,2]
[331374213,1720298394027,154.79103211,0.00014999,2]
[331374214,1720298432136,525.93863422,0.00014999,2]
[331374215,1720298432201,320.23954076,0.00014999,2]
[331374216,1720298434781,154.99075164,0.00014999,2]
[331374217,1720298444384,155.1583484,0.00014999,2]
[331374218,1720298454261,159.62974281,0.00014999,2]
[331374219,1720298462563,169.03338578,0.00014999,2]
[331374220,1720298463739,155.24388584,0.00014999,2]
[331374221,1720298463884,160.0,0.00014999,2]
[331374222,1720298470928,598.75080863,0.00014999,2]
[331374223,1720298474752,169.82584625,0.00014999,2]
[331374224,1720298487245,286.83357324,0.00014999,2]
[331374225,1720298487288,293.46281805,0.00014999,2]
[331374226,1720298487570,155.76371906,0.00014999,2]
[331374227,1720298501852,935.25685846,0.00014999,2]
[331374228,1720298503703,155.503882,0.00014999,2]
[331374229,1720298505526,154.79103211,0.00014999,2]
[331374230,1720298509560,189.29518759,0.00014999,2]
[331374232,1720298527904,402.35776708,0.00014999,2]
[331374233,1720298529566,452.30905176,0.00014999,2]
[331374234,1720298535718,3773.14321747,0.00014999,2]
[331374235,1720298541828,266.77284103,0.00014999,2]
[331374236,1720298543138,200.01501858,0.00014999,2]
[331374237,1720298543504,267.84334631,0.00014999,2]
[331374238,1720298552117,154.88380931,0.00014999,2]
[331374239,1720298552319,154.79103211,0.00014999,2]
[331374240,1720298613015,491.33508365,0.00014999,2]
[331374241,1720298616278,285.30430484,0.00014999,2]
[331374242,1720298617428,525.93863422,0.00014999,2]
[331374243,1720298622607,154.79103211,0.00014999,2]
[331374245,1720298631326,286.83357324,0.00014999,2]
[331374246,1720298634242,155.29293887,0.00014999,2]
[331374247,1720298638313,236.60958914,0.00014999,2]
[331374250,1720298655023,154.79103211,0.00014999,2]
[331374251,1720298655866,154.79103211,0.00014999,2]
[331374252,1720298655998,154.86836189,0.00014999,2]
[331374255,1720298682726,1433.6892322,0.00014999,2]
[331374256,1720298684096,598.75080863,0.00014999,2]
[331374257,1720298692304,318.0694556,0.00014999,2]
[331374258,1720298694169,154.79103211,0.00014999,2]
[331374259,1720298698304,165.17058968,0.00014999,2]
[331374261,1720298705406,159.62974281,0.00014999,2]
[331374262,1720298713020,154.88380931,0.00014999,2]
[331374264,1720298718897,175.89790425,0.00014999,2]
[331374265,1720298740120,155.02402872,0.00014999,2]
[331374266,1720298745671,777.12632108,0.00014999,2]
[331374267,1720298748006,220.96962038,0.00014999,2]
[331374268,1720298760573,525.93863422,0.00014999,2]
[331374270,1720298768361,154.79103211,0.00014999,2]
[331374271,1720298772538,154.79103211,0.00014999,2]
[331374272,1720298773958,154.79103211,0.00014999,2]
[331374273,1720298775636,374.63942513,0.00014999,2]
[331374275,1720298803276,212.02110912,0.00014999,2]
[331374276,1720298806062,154.82195167,0.00014999,2]
[331374278,1720298826298,286.83357324,0.00014999,2]
[331374279,1720298834159,214.4535226,0.00014999,2]
[331374280,1720298843761,216.18224144,0.00014999,2]
[331374281,1720298847206,307.210963,0.00014999,2]
[331374282,1720298864926,595.96043827,0.00014999,2]
[331374283,1720298864965,2833.91780134,0.00015,2]
[331374284,1720298866915,402.35776708,0.00014999,2]
[331374285,1720298883931,402.35776708,0.00014999,2]
[331374286,1720298891105,777.12632108,0.00014999,2]
[331374287,1720298892606,301.07559317,0.00014999,2]
[331374289,1720298912336,667.37209095,0.00014999,2]
[331374291,1720298919377,154.79103211,0.00014999,2]
[331374293,1720298934044,154.79103211,0.00014999,2]
[331374294,1720299000048,154.79103211,0.00014999,2]
[331374296,1720299002998,-618.2814932,0.00015192,2]
[331374297,1720299003029,-300.0,0.00015323,2]
[331374298,1720299003066,-24900.0,0.00015324,2]
[331374299,1720299003109,-8699.5446159,0.00015417,2]
[331374300,1720299003138,-355.261837,0.00015523,2]
[331374301,1720299003166,-350.1453113,0.00015585,2]
[331374302,1720299003203,-250.0,0.00015671,2]
[331374303,1720299003229,-13960.97079071,0.00016154,2]
[331374304,1720299003256,-1986.97335839,0.00016255,2]
[331374305,1720299003285,-287.27338087,0.00016255,2]
[331374306,1720299003317,-193.50509403,0.00016255,2]
[331374307,1720299003344,-372.56078511,0.00016255,2]
[331374308,1720299003369,-3000.0,0.000163,2]
[331374309,1720299003404,-166.666666,0.00016438,2]
[331374310,1720299003439,-166.666666,0.00017079,2]
[331374311,1720299003470,-845.08425622,0.000175,2]
[331374312,1720299003498,-1310.93626714,0.000176,2]
[331374313,1720299003528,-166.666666,0.00017721,2]
[331374314,1720299003563,-190.9326654,0.0001818,2]
[331374315,1720299003600,-245.20896789,0.0001818,2]
[331374316,1720299003629,-205.3687641,0.0001818,2]
[331374317,1720299003662,-528.35145038,0.0001818,2]
[331374318,1720299003704,-283.26851156,0.0001818,2]
[331374319,1720299003737,-154.79103211,0.0001818,2]
[331374320,1720299003764,-154.79103211,0.0001818,2]
[331374321,1720299003793,-166.666666,0.00018362,2]
[331374322,1720299003833,-812.51622582,0.00019,3]
[331374323,1720299003860,-168.723409,0.00019178,2]
[331374324,1720299003891,-2437.17497114,0.00019698,2]
[331374325,1720299003923,-500.0,0.00019788,2]
[331374326,1720299003953,-500.19242449,0.00019788,2]
[331374327,1720299003982,-500.0,0.00019788,2]
[331374328,1720299004012,-500.0,0.00019788,2]
[331374329,1720299004038,-500.0,0.00019788,2]
[331374330,1720299004071,-500.0,0.00019788,2]
[331374331,1720299004100,-500.0,0.00019788,2]
[331374332,1720299004130,-500.0,0.00019788,2]
[331374333,1720299004157,-500.0,0.00019788,2]
[331374334,1720299004187,-500.0,0.00019788,2]
[331374335,1720299004213,-500.0,0.00019788,2]
[331374336,1720299004247,-500.0,0.00019788,2]
[331374337,1720299004273,-267.57171807,0.00019788,2]
[331374338,1720299004302,-500.0,0.00019788,2]
[331374339,1720299004332,-154.1949915,0.00019788,2]
[331374340,1720299004365,-500.0,0.00019788,2]
[331374341,1720299004396,-500.0,0.00019788,2]
[331374342,1720299004434,-45233.1671549,0.0001979,2]
[331374343,1720299004461,-52100.07365113,0.000198,2]
[331374344,1720299004491,-435.0,0.0002,2]
[331374345,1720299004520,-845.08425619,0.00021757,2]
[331374346,1720299004548,-1307.86666204,0.000223,2]
[331374347,1720299007104,51.1784989,0.0001818,2]
[331374433,1720299038446,-673.86846721,0.0001818,2]
[331374435,1720299038456,-2117.84258891,0.0001818,2]
[331374436,1720299038466,-159.35113188,0.0001818,2]
[331374438,1720299038475,-170.311641,0.00021096,2]
[331374440,1720299038485,-355.261837,0.00023285,2]
[331374442,1720299038494,-45233.1671549,0.00024032,3]
[331374444,1720299038504,-251.95241312,0.00024041,2]
[331374446,1720299038514,-572.68833239,0.00024041,2]
[331374448,1720299038523,-343.39727674,0.00024042,2]
[331374520,1720299039770,-341.9273687,0.00024042,2]
[331374522,1720299039782,-2589.80000015,0.00024042,2]
[331374524,1720299039796,-26724.87535441,0.00024042,2]
[331374526,1720299039806,-1024.80976259,0.00025,2]
[331374528,1720299039822,-2437.17497114,0.0002532,2]
[331374530,1720299039832,-845.08425619,0.00026013,2]
[331374532,1720299039841,-170.311641,0.00027195,2]
[331374534,1720299039851,-500.0,0.00027397,2]
[331374536,1720299039860,-640.85769942,0.00027397,2]
[331374538,1720299039870,-1277.27285341,0.000279,2]
[331374540,1720299039879,-796.87513105,0.000285,2]
[331374541,1720299039888,-848.76008577,0.00029,2]
[331374543,1720299039897,-572.0307,0.00029692,30]
[331374545,1720299039907,-523.88603616,0.000298,120]
[331374547,1720299039917,-495.50543718,0.0003,4]
[331374549,1720299039927,-384.35044149,0.0003,10]
[331374551,1720299039936,-7759.99805805,0.0003,10]
[331374553,1720299039946,-202.86745879,0.0003,30]
[331374555,1720299039955,-1000.26496273,0.0003,7]
[331374557,1720299039965,-950.0,0.0003,30]
[331374558,1720299039975,-2437.17497114,0.00030942,2]
[331374560,1720299039984,-380.90110611,0.00032,120]
[331374562,1720299039994,-5131.47,0.00032866,3]
[331374564,1720299040003,-1395.84,0.00032876,10]
[331374566,1720299040014,-1000.0,0.000331,11]
[331374568,1720299040024,-170.311641,0.00033295,2]
[331374570,1720299040035,-786.95813869,0.00033332,2]
[331374571,1720299040044,-1010.57291213,0.00033332,2]
[331374573,1720299040055,-525.0158049,0.00034,5]
[331374575,1720299040064,-1395.84,0.00034246,10]
[331374577,1720299040074,-474.22653977,0.00035,4]
[331374579,1720299040084,-2372.55481177,0.00035615,2]
[331374581,1720299040093,-1395.84,0.00035616,10]
[331374583,1720299040104,-320.12026661,0.00036,30]
[331374585,1720299040114,-2437.17497114,0.00036564,2]
[331374586,1720299040123,-1395.84,0.00036986,10]
[331374588,1720299040133,-1134.13649533,0.00037899,4]
[331374590,1720299040143,-45233.1671549,0.00038346,4]
[331374592,1720299040153,-1395.84,0.00038356,10]
[331374594,1720299040163,-974.151394,0.00038999,4]
[331374596,1720299040172,-161.9347333,0.00039145,2]
[331374598,1720299040182,-264.9057893,0.00039177,2]
[331374601,1720299040203,-170.311641,0.00039394,2]
[331374603,1720299040214,-1395.84,0.00039726,10]
[331374605,1720299040224,-159.98872952,0.00039994,4]
[331374607,1720299040234,-158.02405824,0.00039999,4]
[331374609,1720299040244,-272.18368792,0.00039999,4]
[331374611,1720299040255,-164.13945886,0.00039999,4]
[331374613,1720299040265,-269.90872813,0.00039999,4]
[331374615,1720299040275,-412.59810264,0.00040229,4]
[331374616,1720299040287,-338.56880501,0.00040229,4]
[331374618,1720299040300,-359.36937017,0.00040229,4]
[331374620,1720299040310,-878.0,0.00040238,2]
[331374622,1720299040320,-157.66523315,0.00040278,4]
[331374624,1720299040330,-500.0,0.00040546,120]
[331374625,1720299040340,-155.14766658,0.00040807,4]
[331374626,1720299040350,-434.96124616,0.00040807,4]
[331374627,1720299040359,-155.14766658,0.00040807,4]
[331374628,1720299040370,-1395.84,0.00041095,10]
[331374629,1720299040381,-400.0,0.00041096,60]
[331374630,1720299040391,-160.0,0.00041489,3]
[331374631,1720299040400,-11015.83378005,0.00042,120]
[331374632,1720299040410,-2437.17497114,0.00042186,2]
[331374633,1720299040420,-20000.0,0.00042286,2]
[331374634,1720299040430,-528.63416526,0.00042398,4]
[331374635,1720299040440,-45233.1671549,0.00042455,5]
[331374636,1720299040450,-10165.61,0.00042465,120]
[331374637,1720299040460,-1395.84,0.00042465,10]
[331374638,1720299040470,-5290.06267396,0.00042483,2]
[331374639,1720299040481,-5290.06267396,0.00042483,2]
[331374640,1720299040491,-2500.0,0.000425,120]
[331374641,1720299040501,-150.80395486,0.00042528,2]
[331374642,1720299040511,-175.1,0.00042558,31]
[331374643,1720299040521,-500.0,0.00042568,31]
[331374644,1720299040532,-419.18773769,0.00042568,31]
[331374645,1720299040542,-500.0,0.00042568,31]
[331374646,1720299040552,-500.0,0.00042568,31]
[331374647,1720299040562,-500.0,0.00042568,31]
[331374648,1720299040572,-500.0,0.00042568,31]
[331374649,1720299040583,-402.0,0.00042568,31]
[331374650,1720299040592,-500.0,0.00042568,31]
[331374651,1720299040602,-500.0,0.00042568,31]
[331374652,1720299040612,-90466.3343097,0.00042569,5]
[331374653,1720299040622,-88888.0,0.00042579,5]
[331374654,1720299040633,-175.1,0.00042699,31]
[331374655,1720299040645,-152.0,0.00042699,31]
[331374656,1720299040655,-2000.0,0.000428,2]
[331374657,1720299040665,-160.0,0.00042804,4]
[331374658,1720299040675,-175.1,0.0004284,31]
[331374659,1720299040686,-152.0,0.0004284,31]
[331374660,1720299040696,-45233.1671549,0.0004289,5]
[331374661,1720299040705,-16823.65638344,0.000429,31]
[331374662,1720299040717,-162206.18090642,0.000429,15]
[331374668,1720299041305,-170.94135721,0.00041314,4]
[331374669,1720299041314,-8411.82819172,0.000429,31]
[331374670,1720299041324,-14134.40960426,0.000429,15]
[331374725,1720299046637,-618.2814932,0.00019,3]
[331374726,1720299046653,-15.68785644,0.00019,3]
[331374727,1720299046662,-264.9057893,0.00039167,2]
[331374729,1720299046671,-359.36937017,0.00039999,4]
[331374731,1720299046681,-338.56880501,0.00039999,4]